bitfinex-derivatives/quotes_SOLF0:USTF0_20250823
["timestamp","ask_amount","ask_price","bid_price","bid_amount"]
[1755940798708,4.9114,203.68,203.62,4.74027071]
[1755940798909,4.9114,203.68,203.57,2.67]
[1755940799110,4.9114,203.68,203.58,11.67266929]
[1755940799310,4.9114,203.68,203.6,2.67]
[1755940799507,4.9114,203.68,203.62,2.67]
[1755940800116,30.75466478,203.77,203.62,2.67]
[1755940800320,24.5474,203.76,203.64,2.67]
[1755940800627,24.5474,203.76,203.65,4.7390445]
[1755940800918,24.5474,203.76,203.64,2.67]
[1755940801112,24.5474,203.76,203.65,4.73667451]
[1755940801321,24.5463,203.77,203.66,4.7365536]
[1755940801516,20.94836478,203.75,203.57,2.67]
[1755940801717,4.9122,203.65,203.59,2.67]
[1755940801914,24.5453,203.78,203.61,2.67]
[1755940802223,24.5453,203.78,203.63,2.67]
[1755940802224,4.9108,203.71,203.63,2.67]
[1755940802419,4.9108,203.71,203.64,4.7391986]
[1755940802621,4.9108,203.71,203.65,4.7391986]
[1755940802814,24.5474,203.76,203.63,2.67]
[1755940803018,24.5474,203.76,203.64,4.73459294]
[1755940803215,24.5474,203.76,203.63,2.67]
[1755940803419,24.5474,203.76,203.64,4.73242475]
[1755940803614,4.911,203.7,203.63,2.67]
[1755940803822,24.5453,203.78,203.65,2.84]
[1755940804023,24.5453,203.78,203.66,4.73128855]
[1755940804222,24.5453,203.78,203.65,2.84]
[1755940804721,24.5437,203.79,203.67,2.84]
[1755940805124,4.9102,203.73,203.67,2.84]
[1755940805324,39.2837,203.79,203.67,2.84]
[1755940806020,4.9105,203.72,203.67,2.84]
[1755940808624,4.91,203.74,203.65,2.84]
[1755940808824,39.2837,203.79,203.65,2.84]
[1755940809028,0.85441756,203.76,203.61,2.84]
[1755940809422,24.5512,203.73,203.61,2.84]
[1755940809629,14.74,203.72,203.61,2.84]
[1755940809829,6.20836478,203.69,203.56,2.84]
[1755940810028,20.94836478,203.69,203.56,2.84]
[1755940810430,39.2988,203.67,203.56,2.84]
[1755940811029,4.9137,203.58,203.56,2.84]
[1755940811225,45.50966478,203.65,203.5,2.84]
[1755940811433,45.50966478,203.65,203.51,4.72745313]
[1755940811734,45.50966478,203.65,203.52,4.72655751]
[1755940811735,24.5632,203.63,203.52,4.72655751]
[1755940811933,24.5632,203.63,203.53,2.84]
[1755940812134,24.5594,203.66,203.53,2.84]
[1755940813230,24.5616,203.64,203.53,2.84]
[1755940814534,4.9135,203.6,203.53,2.84]
[1755940814833,6.20836478,203.67,203.54,4.69726661]
[1755940815034,6.20836478,203.67,203.56,2.84]
[1755940815234,4.9124,203.64,203.56,2.84]
[1755940817030,4.9127,203.63,203.56,2.84]
[1755940817634,4.9119,203.66,203.58,2.84]
[1755940818736,4.9119,203.66,203.6,2.84]
[1755940819132,24.5556,203.69,203.56,2.84]
[1755940819339,24.5556,203.69,203.58,2.84]
[1755940819935,4.9119,203.66,203.58,2.84]
[1755940820233,24.5516,203.73,203.59,9.60635767]
[1755940820536,24.5516,203.73,203.61,2.84]
[1755940820931,24.5523,203.72,203.61,2.84]
[1755940821538,24.554,203.71,203.61,2.84]
[1755940821838,24.5523,203.72,203.61,2.84]
[1755940822240,24.5523,203.72,203.56,2.84]
[1755940822533,4.9114,203.68,203.58,2.84]
[1755940822737,4.9114,203.68,203.59,4.6904841]
[1755940822939,4.9114,203.68,203.58,2.84]
[1755940823136,4.9114,203.68,203.59,4.69075879]
[1755940823338,4.9114,203.68,203.6,2.84]
[1755940824138,24.5534,203.71,203.6,2.84]
[1755940825539,4.9114,203.68,203.6,2.84]
[1755940826042,4.9114,203.68,203.61,4.69324461]
[1755940826248,4.9114,203.68,203.6,2.84]
[1755940826434,24.5534,203.71,203.6,2.84]
[1755940827045,24.5545,203.7,203.6,2.84]
[1755940827943,4.9121,203.65,203.6,2.84]
[1755940828140,24.557,203.68,203.56,2.84]
[1755940828345,24.557,203.68,203.57,4.69848377]
[1755940828549,4.9127,203.63,203.58,4.69848377]
[1755940828847,24.5587,203.67,203.56,2.84]
[1755940829141,24.5587,203.67,203.57,4.69882923]
[1755940829448,24.5587,203.67,203.58,4.69882923]
[1755940829647,24.5587,203.67,203.56,2.84]
[1755940829843,24.5587,203.67,203.57,9.62909645]
[1755940830037,24.5587,203.67,203.58,4.70027299]
[1755940830241,24.5587,203.67,203.56,2.84]
[1755940830440,24.5587,203.67,203.57,9.62965313]
[1755940830640,24.5587,203.67,203.58,4.70054235]
[1755940830941,24.557,203.68,203.59,4.70053924]
[1755940831143,24.557,203.68,203.58,2.84]
[1755940831341,24.557,203.68,203.59,4.70134769]
[1755940831544,24.557,203.68,203.6,4.70134769]
[1755940831743,24.557,203.68,203.58,2.84]
[1755940831942,24.5534,203.71,203.59,4.7012455]
[1755940832147,24.5534,203.71,203.6,4.7012455]
[1755940832347,24.5534,203.71,203.58,2.84]
[1755940832545,24.5516,203.73,203.6,2.84]
[1755940832754,24.5516,203.73,203.61,4.70116399]
[1755940833043,4.9117,203.67,203.62,4.70116399]
[1755940833250,4.9117,203.67,203.62,2.84]
[1755940833847,4.9117,203.67,203.58,4.9135]
[1755940834150,4.9111,203.69,203.63,2.83]
[1755940834546,4.9111,203.69,203.64,7.53097237]
[1755940834746,4.9111,203.69,203.64,2.83]
[1755940835346,24.5522,203.72,203.6,4.9131]
[1755940835651,24.5522,203.72,203.61,7.53141968]
[1755940835842,24.5522,203.72,203.61,2.83]
[1755940836644,4.9117,203.67,203.61,2.83]
[1755940836851,24.5537,203.71,203.61,2.83]
[1755940838553,4.912,203.66,203.61,2.83]
[1755940838755,24.5516,203.73,203.59,4.9133]
[1755940838952,24.5516,203.73,203.6,7.5371271]
[1755940839152,24.5516,203.73,203.6,2.83]
[1755940839955,4.9119,203.66,203.6,2.83]
[1755940840456,24.5532,203.71,203.6,2.83]
[1755940841257,24.5545,203.7,203.6,2.83]
[1755940842259,24.5556,203.69,203.58,2.83]
[1755940842560,24.5532,203.71,203.59,4.70802557]
[1755940842760,4.9122,203.65,203.6,4.70598695]
[1755940843058,4.9122,203.65,203.61,2.83]
[1755940843259,24.5532,203.71,203.61,2.83]
[1755940843453,24.5556,203.69,203.61,2.83]
[1755940844555,4.9122,203.65,203.61,2.83]
[1755940846259,4.9122,203.65,203.62,4.71618326]
[1755940846461,4.9122,203.65,203.63,2.83]
[1755940847457,4.9116,203.67,203.6,2.83]
[1755940847663,24.5497,203.74,203.62,2.83]
[1755940847857,24.5497,203.74,203.63,9.71210211]
[1755940848162,24.5508,203.73,203.64,9.71210211]
[1755940848360,24.5508,203.73,203.65,4.7161018]
[1755940848556,24.5497,203.74,203.64,2.83]
[1755940848754,4.9107,203.71,203.65,9.70736348]
[1755940848951,4.9107,203.71,203.67,2.83]
[1755940849153,25.40161756,203.76,203.67,2.83]
[1755940849464,25.40161756,203.76,203.63,4.9124]
[1755940849662,25.40161756,203.76,203.64,12.53638328]
[1755940849857,24.5484,203.75,203.65,9.70638328]
[1755940850056,24.5484,203.75,203.66,4.7129536]
[1755940850256,24.5484,203.75,203.64,2.83]
[1755940850458,24.5484,203.75,203.65,9.70764057]
[1755940850762,24.5484,203.75,203.66,4.71357662]
[1755940850964,24.5484,203.75,203.64,2.83]
[1755940851163,4.911,203.7,203.65,9.7093748]
[1755940851363,4.911,203.7,203.66,7.54441868]
[1755940851564,4.911,203.7,203.66,2.83]
[1755940851868,4.9112,203.69,203.66,2.83]
[1755940852661,4.9112,203.69,203.61,4.9129]
[1755940852863,4.9115,203.68,203.62,9.71463507]
[1755940853062,24.552,203.72,203.63,9.71463507]
[1755940853264,24.552,203.72,203.64,4.7169754]
[1755940853464,4.9121,203.65,203.62,2.83]
[1755940853664,4.9121,203.65,203.63,4.71911111]
[1755940853864,4.9121,203.65,203.62,2.83]
[1755940854064,4.9121,203.65,203.63,4.71927432]
[1755940854364,4.9121,203.65,203.62,2.83]
[1755940854569,4.9121,203.65,203.63,4.71947209]
[1755940854870,4.9121,203.65,203.62,2.83]
[1755940855062,4.9121,203.65,203.63,7.54946926]
[1755940855262,4.9121,203.65,203.63,2.83]
[1755940855965,4.9116,203.67,203.61,2.83]
[1755940856178,4.9116,203.67,203.62,9.72318348]
[1755940856356,4.9116,203.67,203.63,9.72318348]
[1755940856558,4.9116,203.67,203.65,2.83]
[1755940856762,4.9116,203.67,203.61,11.12116478]
[1755940857060,4.9116,203.67,203.66,2.83]
[1755940857258,4.9116,203.67,203.66,7.55135333]
[1755940859969,4.9116,203.67,203.66,4.72135333]
[1755940860564,4.9116,203.67,203.64,2.83]
[1755940860768,4.9116,203.67,203.65,9.73102192]
[1755940860970,4.9116,203.67,203.66,4.72498524]
[1755940861272,4.9125,203.64,203.53,4.12889998]
[1755940861570,24.5544,203.7,203.58,2.83]
[1755940861771,30.76276478,203.7,203.59,9.73323102]
[1755940862072,4.913,203.62,203.6,9.73323102]
[1755940862266,24.5581,203.67,203.58,2.83]
[1755940862466,24.5581,203.67,203.59,9.73964383]
[1755940862766,24.5581,203.67,203.6,4.72916506]
[1755940862968,24.5581,203.67,203.54,2.83]
[1755940863162,24.5581,203.67,203.55,11.56192946]
[1755940863364,24.5581,203.67,203.56,11.56192946]
[1755940863560,4.913,203.62,203.57,9.73950836]
[1755940863767,4.913,203.62,203.58,12.55950836]
[1755940863968,4.913,203.62,203.59,9.73950836]
[1755940864268,4.913,203.62,203.58,2.82]
[1755940864471,4.9124,203.64,203.6,2.82]
[1755940864668,4.9124,203.64,203.61,7.54907587]
[1755940864874,4.9124,203.64,203.62,4.72907587]
[1755940865072,4.9124,203.64,203.63,4.7280183]
[1755940865672,24.557,203.68,203.57,2.82]
[1755940865875,24.557,203.68,203.58,9.73998594]
[1755940866076,24.557,203.68,203.59,9.73998594]
[1755940866271,24.557,203.68,203.6,9.73998594]
[1755940866574,24.5589,203.67,203.61,4.72933117]
[1755940866774,24.5589,203.67,203.57,2.82]
[1755940866975,24.5589,203.67,203.58,9.73954815]
[1755940867176,24.5603,203.66,203.59,9.73954815]
[1755940867378,24.5603,203.66,203.6,9.73954815]
[1755940867576,24.5603,203.66,203.61,4.72911637]
[1755940867778,24.5603,203.66,203.57,2.82]
[1755940867976,24.5589,203.67,203.58,9.73637635]
[1755940868172,24.5589,203.67,203.59,9.73637635]
[1755940868474,24.5589,203.67,203.6,9.73637635]
[1755940868676,24.5589,203.67,203.61,4.72757628]
[1755940868867,24.5589,203.67,203.57,2.82]
[1755940869072,24.5589,203.67,203.58,9.73459574]
[1755940869073,4.9126,203.63,203.58,9.73459574]
[1755940869272,4.9126,203.63,203.59,12.55459574]
[1755940869568,24.5589,203.67,203.6,4.72670946]
[1755940869769,24.5589,203.67,203.59,2.82]
[1755940869970,24.5589,203.67,203.6,4.72703838]
[1755940870273,24.5589,203.67,203.59,2.82]
[1755940870480,24.5589,203.67,203.6,9.73455769]
[1755940870780,24.5589,203.67,203.61,4.72659322]
[1755940870979,40.58466478,203.7,203.59,2.82]
[1755940871186,24.5558,203.69,203.6,9.73729189]
[1755940871386,40.58466478,203.7,203.61,4.72811132]
[1755940871574,40.58466478,203.7,203.59,2.82]
[1755940871773,4.9126,203.63,203.6,9.73509455]
[1755940872077,4.9126,203.63,203.61,4.72695166]
[1755940872377,4.9129,203.62,203.53,4.9148]
[1755940872574,24.5583,203.67,203.54,15.92759763]
[1755940872780,24.5583,203.67,203.56,2.82]
[1755940872984,24.5583,203.67,203.57,11.55715988]
[1755940873282,24.5583,203.67,203.58,9.73549248]
[1755940873478,24.5583,203.67,203.59,9.73549248]
[1755940873683,4.9131,203.61,203.6,4.72905456]
[1755940873979,4.9131,203.61,203.6,9.73865408]
[1755940874384,4.9131,203.61,203.6,4.72905456]
[1755940874581,4.9131,203.61,203.6,4.72965806]
[1755940874781,4.9126,203.63,203.6,4.72965806]
[1755940874984,4.9126,203.63,203.56,2.82]
[1755940875184,4.9126,203.63,203.57,9.67288373]
[1755940875385,4.9126,203.63,203.59,2.82]
[1755940875983,4.9129,203.62,203.59,2.82]
[1755940876780,4.9124,203.64,203.55,2.82]
[1755940876986,4.9124,203.64,203.57,2.82]
[1755940877182,4.9124,203.64,203.59,2.82]
[1755940877388,4.9124,203.64,203.52,2.82]
[1755940877588,4.9124,203.64,203.54,2.82]
[1755940877782,4.9127,203.63,203.56,2.82]
[1755940877982,4.9127,203.63,203.58,2.82]
[1755940878190,4.9127,203.63,203.6,2.82]
[1755940879990,4.9129,203.62,203.6,2.82]
[1755940880189,24.558,203.67,203.55,2.82]
[1755940880388,24.558,203.67,203.56,9.67282807]
[1755940880585,24.5556,203.69,203.58,2.82]
[1755940880779,24.5556,203.69,203.6,2.82]
[1755940881184,4.9124,203.64,203.61,4.72918384]
[1755940881387,4.9124,203.64,203.62,2.82]
[1755940884992,4.9119,203.66,203.62,2.82]
[1755940887391,4.9121,203.65,203.62,2.82]
[1755940887589,24.5546,203.7,203.57,2.82]
[1755940887792,6.20836478,203.68,203.58,9.67461707]
[1755940888095,4.9132,203.61,203.59,4.73029749]
[1755940888290,24.5581,203.67,203.54,2.82]
[1755940888492,24.5581,203.67,203.55,9.67905961]
[1755940888692,24.5581,203.67,203.56,9.67905961]
[1755940888892,24.5581,203.67,203.57,4.732501]
[1755940889091,24.5581,203.67,203.58,4.732501]
[1755940889392,24.5581,203.67,203.59,4.732501]
[1755940889591,24.5581,203.67,203.54,4.9146]
[1755940889892,24.5581,203.67,203.56,2.82]
[1755940890090,4.9128,203.62,203.57,9.67682277]
[1755940890292,4.9128,203.62,203.59,2.82]
[1755940891695,4.9131,203.61,203.59,2.82]
[1755940892195,24.5603,203.66,203.54,2.82]
[1755940892495,24.5603,203.66,203.55,4.73185986]
[1755940892691,24.5603,203.66,203.56,9.67775767]
[1755940892892,24.5603,203.66,203.57,4.73185986]
[1755940893094,24.5603,203.66,203.58,4.73185986]
[1755940893294,24.5614,203.65,203.54,2.82]
[1755940893592,6.20836478,203.68,203.56,2.77]
[1755940893895,4.9129,203.62,203.59,2.77]
[1755940894586,4.9124,203.64,203.56,2.77]
[1755940894792,24.5546,203.7,203.58,2.77]
[1755940895092,24.5546,203.7,203.6,2.77]
[1755940895292,24.5546,203.7,203.61,9.68519449]
[1755940895493,4.9119,203.66,203.62,4.73548689]
[1755940895687,4.9119,203.66,203.63,7.50548689]
[1755940895896,6.20836478,203.73,203.64,2.77]
[1755940896294,24.5503,203.74,203.64,2.77]
[1755940896495,24.5503,203.74,203.65,9.68202539]
[1755940896695,24.5503,203.74,203.66,4.73388832]
[1755940896992,24.5503,203.74,203.64,2.77]
[1755940897189,4.911,203.7,203.66,2.77]
[1755940897386,4.911,203.7,203.67,4.73253544]
[1755940897595,4.911,203.7,203.66,2.77]
[1755940899897,4.9112,203.69,203.66,2.77]
[1755940901301,4.9112,203.69,203.67,2.77]
[1755940902103,24.5516,203.73,203.6,2.77]
[1755940902304,24.5516,203.73,203.61,11.48689492]
[1755940902502,24.5516,203.73,203.62,9.6832494]
[1755940902698,24.5516,203.73,203.63,9.6832494]
[1755940902899,24.5546,203.7,203.64,4.73437946]
[1755940903100,24.5546,203.7,203.65,4.7511434]
[1755940903302,24.5546,203.7,203.6,2.77]
[1755940903603,24.5546,203.7,203.61,9.69753676]
[1755940903897,24.5546,203.7,203.62,9.69753676]
[1755940904098,24.5546,203.7,203.63,9.69753676]
[1755940904299,24.5546,203.7,203.64,4.74960639]
[1755940904493,24.5546,203.7,203.65,4.74960639]
[1755940904691,24.5546,203.7,203.6,2.77]
[1755940904892,24.5546,203.7,203.61,11.65188027]
[1755940905097,24.5546,203.7,203.6,2.77]
[1755940905098,4.9119,203.66,203.62,9.75678622]
[1755940905298,4.9119,203.66,203.63,7.52155946]
[1755940905500,4.9119,203.66,203.59,2.77]
[1755940905697,4.9119,203.66,203.61,2.77]
[1755940905898,4.9119,203.66,203.64,2.77]
[1755940907702,24.5516,203.73,203.65,4.74729221]
[1755940907908,24.5516,203.73,203.66,2.77]
[1755940909508,4.9112,203.69,203.66,2.77]
[1755940910804,4.9112,203.69,203.63,2.77]
[1755940911005,4.9112,203.69,203.64,9.74197923]
[1755940911207,4.9112,203.69,203.66,2.77]
[1755940913912,4.9112,203.69,203.64,2.77]
[1755940914113,9.8196,203.75,203.65,4.74453712]
[1755940914314,9.8196,203.75,203.64,2.77]
[1755940914614,9.8196,203.75,203.65,4.74385707]
[1755940914814,9.8196,203.75,203.64,7.6822]
[1755940915010,9.8196,203.75,203.65,4.74396277]
[1755940915315,9.8196,203.75,203.66,4.74396277]
[1755940915515,9.8196,203.75,203.65,2.77]
[1755940915720,9.8196,203.75,203.64,4.9122]
[1755940915721,9.8196,203.75,203.67,2.77]
[1755940916514,4.9108,203.71,203.67,2.77]
[1755940916715,4.9108,203.71,203.68,2.77]
[1755940919820,4.9102,203.73,203.62,2.77]
[1755940920010,4.9102,203.73,203.64,2.77]
[1755940920209,4.9102,203.73,203.66,2.77]
[1755940920519,24.5351,203.86,203.7,2.77]
[1755940920810,24.5389,203.83,203.72,2.77]
[1755940921017,24.5389,203.83,203.73,4.73639383]
[1755940921216,24.5389,203.83,203.72,2.77]
[1755940921420,4.9093,203.77,203.73,4.73708582]
[1755940921614,24.5365,203.85,203.74,7.50638984]
[1755940921819,24.5365,203.85,203.74,2.77]
[1755940922123,4.9093,203.77,203.74,2.77]
[1755940922821,24.5376,203.84,203.7,2.77]
[1755940923021,35.20331917,203.86,203.72,2.77]
[1755940923221,35.20331917,203.86,203.73,11.89892123]
[1755940923419,35.20331917,203.86,203.74,14.56892123]
[1755940923619,35.20331917,203.86,203.75,6.91547006]
[1755940923819,35.20331917,203.86,203.74,2.67]
[1755940924025,24.5363,203.85,203.75,4.72679274]
[1755940924322,24.5363,203.85,203.74,2.67]
[1755940924518,24.5363,203.85,203.75,4.72256579]
[1755940924723,24.5363,203.85,203.74,2.67]
[1755940925428,6.20836478,203.89,203.75,2.67]
[1755940925626,24.5327,203.88,203.75,2.67]
[1755940926026,4.9078,203.83,203.75,7.5794]
[1755940926632,9.8137,203.87,203.71,2.67]
[1755940926933,24.5537,203.87,203.71,2.67]
[1755940927135,4.9091,203.78,203.71,2.67]
[1755940928129,24.5414,203.81,203.71,2.67]
[1755940928935,24.5424,203.8,203.71,2.67]
[1755940930738,4.9095,203.76,203.71,2.67]
[1755940931130,4.9098,203.75,203.67,4.9114]
[1755940931338,24.5435,203.79,203.65,6.20836478]
[1755940931339,24.5435,203.79,203.68,2.67]
[1755940931536,24.5426,203.8,203.68,2.67]
[1755940931836,24.5472,203.76,203.68,2.67]
[1755940934335,4.9096,203.75,203.68,2.67]
[1755940934536,24.5426,203.8,203.68,2.67]
[1755940935340,4.9095,203.76,203.69,7.40381938]
[1755940935541,4.9095,203.76,203.69,2.67]
[1755940935939,4.9095,203.76,203.7,4.73314054]
[1755940936137,4.9095,203.76,203.69,4.9109]
[1755940936340,4.9089,203.78,203.71,2.67]
[1755940936645,30.74556478,203.85,203.73,2.67]
[1755940936843,24.5376,203.84,203.73,2.67]
[1755940937542,4.9085,203.8,203.74,4.73289836]
[1755940937742,4.9085,203.8,203.73,2.67]
[1755940937941,4.9085,203.8,203.74,4.73290557]
[1755940938137,4.9085,203.8,203.76,2.67]
[1755940938333,24.5388,203.83,203.7,2.67]
[1755940938534,24.5388,203.83,203.71,4.9104]
[1755940938742,24.5388,203.83,203.72,14.58309769]
[1755940938946,4.9088,203.79,203.73,4.73345399]
[1755940939142,4.9088,203.79,203.72,2.67]
[1755940939340,4.9088,203.79,203.73,4.73308927]
[1755940939647,4.9088,203.79,203.75,2.67]
[1755940939842,4.9088,203.79,203.76,2.67]
[1755940940345,4.9083,203.81,203.73,2.67]
[1755940940545,4.9083,203.81,203.74,6.9138558]
[1755940940739,4.9083,203.81,203.73,2.67]
[1755940940939,4.9083,203.81,203.74,6.9135135]
[1755940941140,4.9083,203.81,203.75,4.73194867]
[1755940941341,4.9083,203.81,203.75,2.67]
[1755940942042,4.9086,203.8,203.75,2.67]
[1755940942246,4.9086,203.8,203.76,2.67]
[1755940943246,4.9088,203.79,203.76,2.67]
[1755940943446,4.9088,203.79,203.73,2.67]
[1755940943648,4.9088,203.79,203.74,4.73105708]
[1755940943842,24.5384,203.84,203.72,7.5802]
[1755940943843,24.5412,203.81,203.72,2.67]
[1755940945748,4.9096,203.76,203.72,2.67]
[1755940946441,4.909,203.78,203.66,6.20836478]
[1755940946646,24.5394,203.83,203.68,2.67]
[1755940946845,24.5394,203.83,203.7,2.67]
[1755940947039,24.5394,203.83,203.71,4.73409544]
[1755940947240,24.5405,203.82,203.72,7.40381093]
[1755940947441,24.5405,203.82,203.72,2.67]
[1755940947639,4.9085,203.8,203.72,7.5802]
[1755940947945,4.9085,203.8,203.73,7.40346514]
[1755940948154,4.9085,203.8,203.74,2.67]
[1755940950655,4.9088,203.79,203.74,2.67]
[1755940950955,24.5372,203.85,203.74,2.67]
[1755940952052,4.9089,203.78,203.75,2.67]
[1755940952251,24.5376,203.84,203.7,2.67]
[1755940952451,24.5387,203.83,203.71,4.73861695]
[1755940952650,4.9095,203.76,203.7,2.67]
[1755940952850,4.9095,203.76,203.72,2.67]
[1755940954060,24.541,203.82,203.68,2.83]
[1755940954352,24.541,203.82,203.7,2.83]
[1755940954653,24.5412,203.81,203.71,6.92596237]
[1755940954856,24.5412,203.81,203.7,2.83]
[1755940955046,24.5412,203.81,203.71,6.92835891]
[1755940955245,24.5412,203.81,203.72,4.74177659]
[1755940955450,24.5387,203.83,203.7,2.83]
[1755940955659,24.5387,203.83,203.72,2.83]
[1755940955856,24.5387,203.83,203.73,4.74254333]
[1755940956053,4.9089,203.78,203.72,7.7402]
[1755940956357,4.9089,203.78,203.74,2.83]
[1755940956849,24.5415,203.81,203.69,2.83]
[1755940957046,9.8164,203.81,203.7,4.74441157]
[1755940957249,24.5448,203.78,203.69,2.83]
[1755940958659,4.9105,203.72,203.69,2.83]
[1755940959957,24.5473,203.76,203.65,2.83]
[1755940960153,24.5473,203.76,203.66,11.95662773]
[1755940960352,4.9113,203.69,203.67,11.95662773]
[1755940960556,24.552,203.72,203.61,2.83]
[1755940960756,24.552,203.72,203.62,11.96373236]
[1755940960946,24.552,203.72,203.63,11.96373236]
[1755940961154,24.5535,203.71,203.64,11.96620774]
[1755940961457,24.5535,203.71,203.65,4.7529902]
[1755940961659,4.912,203.66,203.61,2.83]
[1755940961860,24.5535,203.71,203.62,11.96718232]
[1755940962156,24.5535,203.71,203.63,6.94674488]
[1755940962358,24.5535,203.71,203.58,2.83]
[1755940962555,24.5535,203.71,203.59,11.96759269]
[1755940962761,24.5535,203.71,203.6,11.96759269]
[1755940962961,24.5535,203.71,203.61,11.96759269]
[1755940963157,24.5535,203.71,203.62,11.96759269]
[1755940963459,24.5554,203.7,203.63,6.94698604]
[1755940963659,24.5535,203.71,203.64,4.75455322]
[1755940963959,24.5535,203.71,203.58,2.83]
[1755940964166,24.5535,203.71,203.59,16.34999696]
[1755940964459,24.5535,203.71,203.6,16.34960526]
[1755940964659,24.5535,203.71,203.61,11.98372814]
[1755940964851,24.5535,203.71,203.62,11.98372814]
[1755940965056,24.5535,203.71,203.63,11.98735953]
[1755940965256,4.912,203.66,203.64,4.77170633]
[1755940965455,4.912,203.66,203.58,7.7436]
[1755940965758,24.5535,203.71,203.59,14.81461773]
[1755940965759,24.5555,203.7,203.59,14.81461773]
[1755940965955,24.5555,203.7,203.6,11.98461773]
[1755940966155,24.5555,203.7,203.61,6.96478079]
[1755940966356,24.5555,203.7,203.62,4.77035492]
[1755940966557,4.9127,203.63,203.59,2.83]
[1755940966757,4.9127,203.63,203.6,11.98245133]
[1755940966958,4.9127,203.63,203.61,11.98245133]
[1755940967260,4.9127,203.63,203.62,4.76953503]
[1755940968164,4.9127,203.63,203.59,2.83]
[1755940968464,4.9127,203.63,203.6,14.8017256]
[1755940968659,4.9127,203.63,203.61,4.76517989]
[1755940968963,4.9127,203.63,203.6,2.83]
[1755940969167,4.9127,203.63,203.61,4.76492358]
[1755940969365,4.9127,203.63,203.62,4.76317122]
[1755940969665,4.9121,203.65,203.62,4.76317122]
[1755940969861,4.9121,203.65,203.6,2.83]
[1755940970062,4.9121,203.65,203.61,6.95404365]
[1755940970263,4.9121,203.65,203.62,4.76300967]
[1755940970463,4.9121,203.65,203.6,2.83]
[1755940970658,4.9121,203.65,203.61,6.95221013]
[1755940970860,4.9121,203.65,203.62,4.76175193]
[1755940971063,4.9121,203.65,203.61,2.83]
[1755940971358,4.9121,203.65,203.62,4.76175193]
[1755940971566,4.9121,203.65,203.61,2.83]
[1755940977467,4.9124,203.64,203.61,2.83]
[1755940981672,4.9127,203.63,203.61,2.83]
[1755940982669,4.9121,203.65,203.56,2.83]
[1755940982871,4.9121,203.65,203.59,4.9134]
[1755940983170,4.9121,203.65,203.6,2.83]
[1755940983672,4.9121,203.65,203.61,2.7]
[1755940984069,4.9121,203.65,203.6,2.7]
[1755940984274,4.9121,203.65,203.59,4.9134]
[1755940984477,4.9121,203.65,203.62,2.7]
[1755940985064,4.9121,203.65,203.63,2.7]
[1755940986868,4.9126,203.63,203.61,2.7]
[1755940987173,4.9126,203.63,203.57,4.9139]
[1755940987367,4.9126,203.63,203.58,6.9487644]
[1755940987572,4.9126,203.63,203.59,7.45940412]
[1755940987774,4.9126,203.63,203.58,4.9136]
[1755940987974,4.9126,203.63,203.6,2.7]
[1755940988276,4.9121,203.65,203.59,4.9133]
[1755940988481,4.9121,203.65,203.61,2.7]
[1755940988780,24.556,203.69,203.61,2.7]
[1755940988976,4.9124,203.64,203.61,2.7]
[1755940990980,4.9119,203.66,203.61,2.7]
[1755940991980,4.9119,203.66,203.62,2.7]
[1755940996489,24.5458,203.78,203.61,2.7]